[Event "Titled Tuesday Blitz November 07 Early 2023"]
[White "Bacrot, Etienne"]
[Black "Kleiman, Jake"]
[WhiteFideId "605506"]
[BlackFideId "2020041"]
[WhiteElo "2813"]
[BlackElo "2668"]
[Result "1-0"]
[Round "9"]
[TimeControl "180+1"]
[Date "2023.11.07"]
[WhiteClock "0:00:36"]
[BlackClock "0:00:00"]
[Board "38"]

1. g4 {[%clk 0:03:00]}  d5 {[%clk 0:02:55]} 2. Bg2 {[%clk 0:03:00]}  c6 {[%clk 0:02:55]} 3. h3 {[%clk 0:02:59]}  e5 {[%clk 0:02:54]} 4. d3 {[%clk 0:03:00]}  Bd6 {[%clk 0:02:49]} 5. Nc3 {[%clk 0:02:59]}  Be6 {[%clk 0:02:46]} 6. Nf3 {[%clk 0:02:58]}  h6 {[%clk 0:02:41]} 7. e4 {[%clk 0:02:56]}  d4 {[%clk 0:02:41]} 8. Ne2 {[%clk 0:02:56]}  Nd7 {[%clk 0:02:41]} 9. Ng3 {[%clk 0:02:56]}  g6 {[%clk 0:02:40]} 10. c3 {[%clk 0:02:50]}  c5 {[%clk 0:02:40]} 11. c4 {[%clk 0:02:46]}  Be7 {[%clk 0:02:32]} 12. Nf5 {[%clk 0:02:45]}  Qc7 {[%clk 0:02:24]} 13. Ng7+ {[%clk 0:02:44]}  Kd8 {[%clk 0:02:08]} 14. Bd2 {[%clk 0:02:18]}  Nf8 {[%clk 0:01:49]} 15. b4 {[%clk 0:02:07]}  Bd7 {[%clk 0:01:45]} 16. bxc5 {[%clk 0:02:03]}  Bxc5 {[%clk 0:01:39]} 17. Rb1 {[%clk 0:01:57]}  Rh7 {[%clk 0:01:35]} 18. Qc1 {[%clk 0:01:16]}  Rxg7 {[%clk 0:01:12]} 19. Bxh6 {[%clk 0:01:16]}  Nxh6 {[%clk 0:01:12]} 20. Qxh6 {[%clk 0:01:16]}  Ne6 {[%clk 0:00:42]} 21. Ng5 {[%clk 0:01:16]}  Bf8 {[%clk 0:00:31]} 22. Nxe6+ {[%clk 0:01:16]}  Bxe6 {[%clk 0:00:32]} 23. f4 {[%clk 0:01:15]}  Rg8 {[%clk 0:00:26]} 24. Qh4+ {[%clk 0:01:10]}  g5 {[%clk 0:00:24]} 25. fxg5 {[%clk 0:01:08]}  Be7 {[%clk 0:00:25]} 26. O-O {[%clk 0:01:06]}  Bxg5 {[%clk 0:00:23]} 27. Qh7 {[%clk 0:01:07]}  Re8 {[%clk 0:00:17]} 28. Qg7 {[%clk 0:01:01]}  Be3+ {[%clk 0:00:15]} 29. Kh1 {[%clk 0:01:00]}  b6 {[%clk 0:00:14]} 30. Rb5 {[%clk 0:00:59]}  a6 {[%clk 0:00:13]} 31. Rxe5 {[%clk 0:00:59]}  Kc8 {[%clk 0:00:09]} 32. Rh5 {[%clk 0:00:49]}  Rb8 {[%clk 0:00:06]} 33. e5 {[%clk 0:00:46]}  Qe7 {[%clk 0:00:05]} 34. Rf6 {[%clk 0:00:36]}  Kc7 {[%clk 0:00:05]} 35. Bd5 {[%clk 0:00:34]}  Bxd5+ {[%clk 0:00:02]} 36. cxd5 {[%clk 0:00:35]}  Qc5 {[%clk 0:00:01]} 37. Rc6+ {[%clk 0:00:35]}  Qxc6 {[%clk 0:00:01]} 38. dxc6 {[%clk 0:00:36]}  Re7 {[%clk 0:00:01]} 39. Qf6 {[%clk 0:00:36]}  Rbe8 {[%clk 0:00:01]} 40. Qd6+ {[%clk 0:00:36]}  Kc8 {[%clk 0:00:00]} 41. Rf5 {[%clk 0:00:36]} 1-0


[Site "https://www.chess.com"]

[Event "Titled Tuesday Blitz November 07 Early 2023"]
[White "Degenbaev, Aziz"]
[Black "Szpar, Milosz"]
[WhiteFideId "13802640"]
[BlackFideId "1184989"]
[WhiteElo "2664"]
[BlackElo "2800"]
[Result "0-1"]
[Round "9"]
[TimeControl "180+1"]
[Date "2023.11.07"]
[WhiteClock "0:00:14"]
[BlackClock "0:00:13"]
[Board "39"]

1. e4 {[%clk 0:03:00]}  e6 {[%clk 0:03:00]} 2. d4 {[%clk 0:02:59]}  d5 {[%clk 0:03:00]} 3. Nc3 {[%clk 0:02:59]}  Nf6 {[%clk 0:03:00]} 4. e5 {[%clk 0:02:59]}  Nfd7 {[%clk 0:03:00]} 5. Nce2 {[%clk 0:02:59]}  c5 {[%clk 0:03:01]} 6. c3 {[%clk 0:03:00]}  Nc6 {[%clk 0:03:01]} 7. Nf3 {[%clk 0:03:01]}  Be7 {[%clk 0:03:02]} 8. g3 {[%clk 0:02:43]}  O-O {[%clk 0:03:02]} 9. Bg2 {[%clk 0:02:43]}  b5 {[%clk 0:03:02]} 10. O-O {[%clk 0:02:35]}  b4 {[%clk 0:03:03]} 11. Nf4 {[%clk 0:02:32]}  bxc3 {[%clk 0:03:01]} 12. bxc3 {[%clk 0:02:32]}  Ba6 {[%clk 0:03:01]} 13. Re1 {[%clk 0:02:30]}  Qa5 {[%clk 0:02:50]} 14. Bd2 {[%clk 0:02:25]}  Bc4 {[%clk 0:02:50]} 15. h4 {[%clk 0:02:24]}  Nb6 {[%clk 0:02:47]} 16. Ng5 {[%clk 0:02:21]}  h6 {[%clk 0:02:43]} 17. Qh5 {[%clk 0:02:13]}  cxd4 {[%clk 0:02:25]} 18. Rec1 {[%clk 0:02:06]}  d3 {[%clk 0:02:05]} 19. Bh3 {[%clk 0:02:05]}  Nxe5 {[%clk 0:01:16]} 20. Ngxe6 {[%clk 0:01:57]}  Bf6 {[%clk 0:01:06]} 21. Nxf8 {[%clk 0:01:48]}  Rxf8 {[%clk 0:01:06]} 22. Re1 {[%clk 0:01:37]}  g6 {[%clk 0:00:45]} 23. Qd1 {[%clk 0:01:36]}  Na4 {[%clk 0:00:40]} 24. h5 {[%clk 0:00:50]}  g5 {[%clk 0:00:39]} 25. Ng2 {[%clk 0:00:47]}  Nxc3 {[%clk 0:00:34]} 26. Bxc3 {[%clk 0:00:47]}  Qxc3 {[%clk 0:00:34]} 27. f4 {[%clk 0:00:48]}  Qxa1 {[%clk 0:00:25]} 28. Qxa1 {[%clk 0:00:38]}  Nf3+ {[%clk 0:00:25]} 29. Kf2 {[%clk 0:00:38]}  Bxa1 {[%clk 0:00:25]} 30. Rxa1 {[%clk 0:00:36]}  Nd2 {[%clk 0:00:24]} 31. fxg5 {[%clk 0:00:30]}  Ne4+ {[%clk 0:00:23]} 32. Ke3 {[%clk 0:00:30]}  hxg5 {[%clk 0:00:20]} 33. Ne1 {[%clk 0:00:29]}  Re8 {[%clk 0:00:19]} 34. Kd4 {[%clk 0:00:19]}  d2 {[%clk 0:00:19]} 35. Nc2 {[%clk 0:00:17]}  Nf2 {[%clk 0:00:19]} 36. Bd7 {[%clk 0:00:15]}  Re4+ {[%clk 0:00:19]} 37. Kc5 {[%clk 0:00:14]}  d1=Q {[%clk 0:00:19]} 38. Rxd1 {[%clk 0:00:15]}  Nxd1 {[%clk 0:00:19]} 39. Bf5 {[%clk 0:00:15]}  Re5 {[%clk 0:00:17]} 40. g4 {[%clk 0:00:14]}  Ne3 {[%clk 0:00:13]} 0-1


[Site "https://www.chess.com"]

[Event "Titled Tuesday Blitz November 07 Early 2023"]
[White "Adewumi, Tanitoluwa"]
[Black "Sattarov, Bobir"]
[WhiteFideId "30966396"]
[BlackFideId "14203081"]
[WhiteElo "2646"]
[BlackElo "2765"]
[Result "0-1"]
[Round "9"]
[TimeControl "180+1"]
[Date "2023.11.07"]
[WhiteClock "0:00:00"]
[BlackClock "0:00:07"]
[Board "43"]

1. e4 {[%clk 0:03:00]}  e5 {[%clk 0:03:00]} 2. Nf3 {[%clk 0:02:52]}  Nc6 {[%clk 0:03:00]} 3. c3 {[%clk 0:02:35]}  d5 {[%clk 0:02:56]} 4. Bb5 {[%clk 0:02:31]}  f6 {[%clk 0:02:26]} 5. Qa4 {[%clk 0:02:05]}  Ne7 {[%clk 0:02:25]} 6. exd5 {[%clk 0:01:56]}  Qxd5 {[%clk 0:02:26]} 7. d4 {[%clk 0:01:56]}  Bg4 {[%clk 0:02:20]} 8. Nbd2 {[%clk 0:01:45]}  e4 {[%clk 0:01:59]} 9. c4 {[%clk 0:01:03]}  Qf5 {[%clk 0:01:18]} 10. Nh4 {[%clk 0:00:54]}  Qh5 {[%clk 0:01:16]} 11. d5 {[%clk 0:00:42]}  Qxh4 {[%clk 0:01:10]} 12. dxc6 {[%clk 0:00:42]}  b6 {[%clk 0:01:11]} 13. O-O {[%clk 0:00:21]}  Ng6 {[%clk 0:00:58]} 14. c5 {[%clk 0:00:17]}  f5 {[%clk 0:00:35]} 15. cxb6 {[%clk 0:00:16]}  Bd6 {[%clk 0:00:35]} 16. g3 {[%clk 0:00:13]}  Qh3 {[%clk 0:00:34]} 17. b7 {[%clk 0:00:08]}  Rd8 {[%clk 0:00:32]} 18. Re1 {[%clk 0:00:06]}  O-O {[%clk 0:00:12]} 19. Bf1 {[%clk 0:00:05]}  Qh5 {[%clk 0:00:12]} 20. Nc4 {[%clk 0:00:06]}  Bc5 {[%clk 0:00:11]} 21. Be3 {[%clk 0:00:05]}  Bxe3 {[%clk 0:00:11]} 22. Nxe3 {[%clk 0:00:06]}  Ne5 {[%clk 0:00:11]} 23. Bg2 {[%clk 0:00:05]}  Bf3 {[%clk 0:00:11]} 24. Qb3+ {[%clk 0:00:03]}  Kh8 {[%clk 0:00:11]} 25. Nd5 {[%clk 0:00:02]}  Bxg2 {[%clk 0:00:10]} 26. Nf4 {[%clk 0:00:02]}  Qh6 {[%clk 0:00:09]} 27. Kxg2 {[%clk 0:00:02]}  Nf3 {[%clk 0:00:08]} 28. h4 {[%clk 0:00:03]}  Nxh4+ {[%clk 0:00:07]} 29. gxh4 {[%clk 0:00:02]}  Qxf4 {[%clk 0:00:08]} 30. Qg3 {[%clk 0:00:03]}  Qh6 {[%clk 0:00:07]} 31. Qxc7 {[%clk 0:00:03]}  f4 {[%clk 0:00:07]} 32. f3 {[%clk 0:00:02]}  Qg6+ {[%clk 0:00:07]} 33. Kh1 {[%clk 0:00:03]}  Qg3 {[%clk 0:00:07]} 34. fxe4 {[%clk 0:00:02]}  Qh3+ {[%clk 0:00:07]} 35. Kg1 {[%clk 0:00:00]}  Rd2 {[%clk 0:00:07]} 0-1


[Site "https://www.chess.com"]

[Event "Titled Tuesday Blitz November 07 Early 2023"]
[White "Gubajdullin, Alexei"]
[Black "Saydaliev, Saidakbar"]
[WhiteFideId "4141202"]
[BlackFideId "14203693"]
[WhiteElo "2644"]
[BlackElo "2764"]
[Result "1-0"]
[Round "9"]
[TimeControl "180+1"]
[Date "2023.11.07"]
[WhiteClock "0:00:15"]
[BlackClock "0:00:18"]
[Board "44"]

1. d4 {[%clk 0:02:59]}  Nf6 {[%clk 0:02:54]} 2. Nf3 {[%clk 0:02:59]}  d5 {[%clk 0:02:53]} 3. Bf4 {[%clk 0:02:58]}  c5 {[%clk 0:02:53]} 4. e3 {[%clk 0:02:59]}  e6 {[%clk 0:02:53]} 5. Nbd2 {[%clk 0:02:58]}  Bd6 {[%clk 0:02:54]} 6. Bg3 {[%clk 0:02:58]}  Qc7 {[%clk 0:02:54]} 7. c3 {[%clk 0:02:56]}  Nbd7 {[%clk 0:02:53]} 8. Qa4 {[%clk 0:02:39]}  O-O {[%clk 0:02:53]} 9. Bxd6 {[%clk 0:02:33]}  Qxd6 {[%clk 0:02:51]} 10. Qa3 {[%clk 0:02:33]}  e5 {[%clk 0:02:46]} 11. dxe5 {[%clk 0:02:31]}  Nxe5 {[%clk 0:02:45]} 12. Nxe5 {[%clk 0:02:31]}  Qxe5 {[%clk 0:02:46]} 13. Qxc5 {[%clk 0:02:30]}  Ng4 {[%clk 0:02:37]} 14. Nf3 {[%clk 0:02:10]}  Qf5 {[%clk 0:02:34]} 15. h3 {[%clk 0:02:08]}  Nf6 {[%clk 0:02:33]} 16. Qd4 {[%clk 0:01:54]}  Qc2 {[%clk 0:02:32]} 17. Qd2 {[%clk 0:01:53]}  Qa4 {[%clk 0:02:32]} 18. Bd3 {[%clk 0:01:51]}  Ne4 {[%clk 0:02:25]} 19. Qc2 {[%clk 0:01:51]}  Qc6 {[%clk 0:02:23]} 20. Nd4 {[%clk 0:01:48]}  Qg6 {[%clk 0:02:23]} 21. g4 {[%clk 0:01:35]}  f5 {[%clk 0:02:07]} 22. f3 {[%clk 0:01:21]}  Nd6 {[%clk 0:01:59]} 23. gxf5 {[%clk 0:01:09]}  Bxf5 {[%clk 0:01:37]} 24. O-O-O {[%clk 0:01:06]}  Rae8 {[%clk 0:01:35]} 25. Rhg1 {[%clk 0:00:56]}  Qh5 {[%clk 0:01:34]} 26. Qg2 {[%clk 0:00:39]}  g6 {[%clk 0:01:26]} 27. f4 {[%clk 0:00:37]}  Bxd3 {[%clk 0:01:15]} 28. Rxd3 {[%clk 0:00:37]}  Re4 {[%clk 0:01:09]} 29. Nc2 {[%clk 0:00:35]}  Rf5 {[%clk 0:00:42]} 30. Rgd1 {[%clk 0:00:35]}  Nc4 {[%clk 0:00:38]} 31. Qg4 {[%clk 0:00:31]}  Qh6 {[%clk 0:00:33]} 32. Rxd5 {[%clk 0:00:29]}  Rxd5 {[%clk 0:00:27]} 33. Rxd5 {[%clk 0:00:28]}  Re8 {[%clk 0:00:27]} 34. Rd4 {[%clk 0:00:20]}  Nb6 {[%clk 0:00:24]} 35. a4 {[%clk 0:00:17]}  Qf8 {[%clk 0:00:24]} 36. a5 {[%clk 0:00:17]}  Nc8 {[%clk 0:00:24]} 37. Qd7 {[%clk 0:00:17]}  Ne7 {[%clk 0:00:25]} 38. Qxb7 {[%clk 0:00:16]}  Nf5 {[%clk 0:00:24]} 39. Rd7 {[%clk 0:00:16]}  Nxe3 {[%clk 0:00:22]} 40. Nxe3 {[%clk 0:00:15]}  Rxe3 {[%clk 0:00:22]} 41. Qd5+ {[%clk 0:00:15]}  Kh8 {[%clk 0:00:20]} 42. Qd4+ {[%clk 0:00:15]}  Kg8 {[%clk 0:00:18]} 43. Qxe3 {[%clk 0:00:15]} 1-0


[Site "https://www.chess.com"]

[Event "Titled Tuesday Blitz November 07 Early 2023"]
[White "Feuerstack, Aljoscha"]
[Black "Perez Gormaz, Matias"]
[WhiteFideId "4681932"]
[BlackFideId "3406342"]
[WhiteElo "2612"]
[BlackElo "2723"]
[Result "1-0"]
[Round "9"]
[TimeControl "180+1"]
[Date "2023.11.07"]
[WhiteClock "0:00:10"]
[BlackClock "0:00:04"]
[Board "46"]

1. e4 {[%clk 0:03:00]}  c6 {[%clk 0:02:59]} 2. d3 {[%clk 0:02:58]}  d5 {[%clk 0:03:00]} 3. Nd2 {[%clk 0:02:58]}  g6 {[%clk 0:02:59]} 4. g3 {[%clk 0:02:57]}  Bg7 {[%clk 0:02:59]} 5. Bg2 {[%clk 0:02:57]}  e5 {[%clk 0:03:00]} 6. Ngf3 {[%clk 0:02:57]}  Ne7 {[%clk 0:02:59]} 7. O-O {[%clk 0:02:56]}  O-O {[%clk 0:03:00]} 8. Re1 {[%clk 0:02:56]}  d4 {[%clk 0:03:00]} 9. Nf1 {[%clk 0:02:46]}  c5 {[%clk 0:02:59]} 10. h4 {[%clk 0:02:44]}  Nbc6 {[%clk 0:02:55]} 11. h5 {[%clk 0:02:41]}  Bg4 {[%clk 0:02:54]} 12. h6 {[%clk 0:02:39]}  Bh8 {[%clk 0:02:55]} 13. N1h2 {[%clk 0:02:38]}  Be6 {[%clk 0:02:54]} 14. Ng5 {[%clk 0:02:37]}  Bd7 {[%clk 0:02:54]} 15. f4 {[%clk 0:02:23]}  f6 {[%clk 0:02:52]} 16. Ngf3 {[%clk 0:02:23]}  Be6 {[%clk 0:02:43]} 17. Bd2 {[%clk 0:02:11]}  Qc7 {[%clk 0:02:38]} 18. f5 {[%clk 0:01:58]}  gxf5 {[%clk 0:02:21]} 19. exf5 {[%clk 0:01:59]}  Nxf5 {[%clk 0:02:14]} 20. Bh3 {[%clk 0:01:51]}  Qf7 {[%clk 0:02:10]} 21. Re4 {[%clk 0:01:17]}  Ne3 {[%clk 0:01:53]} 22. Bxe6 {[%clk 0:01:13]}  Qxe6 {[%clk 0:01:53]} 23. Bxe3 {[%clk 0:01:10]}  dxe3 {[%clk 0:01:53]} 24. Rg4+ {[%clk 0:00:13]}  Kf7 {[%clk 0:01:49]} 25. Qe1 {[%clk 0:00:13]}  Rg8 {[%clk 0:01:43]} 26. Rxg8 {[%clk 0:00:12]}  Rxg8 {[%clk 0:01:44]} 27. Qxe3 {[%clk 0:00:11]}  Rxg3+ {[%clk 0:01:42]} 28. Kf2 {[%clk 0:00:12]}  Rg6 {[%clk 0:01:32]} 29. Qxc5 {[%clk 0:00:12]}  f5 {[%clk 0:00:50]} 30. Nf1 {[%clk 0:00:12]}  e4 {[%clk 0:00:46]} 31. dxe4 {[%clk 0:00:11]}  fxe4 {[%clk 0:00:47]} 32. Ng5+ {[%clk 0:00:11]}  Rxg5 {[%clk 0:00:44]} 33. Qxg5 {[%clk 0:00:11]}  Bf6 {[%clk 0:00:27]} 34. Qh5+ {[%clk 0:00:11]}  Ke7 {[%clk 0:00:28]} 35. Ne3 {[%clk 0:00:12]}  Bd4 {[%clk 0:00:26]} 36. Qg5+ {[%clk 0:00:11]}  Kd7 {[%clk 0:00:05]} 37. Rd1 {[%clk 0:00:10]}  Kc7 {[%clk 0:00:06]} 38. c3 {[%clk 0:00:10]}  Bb6 {[%clk 0:00:02]} 39. Ke2 {[%clk 0:00:10]}  Ne7 {[%clk 0:00:02]} 40. Qxe7+ {[%clk 0:00:09]}  Qxe7 {[%clk 0:00:02]} 41. Nd5+ {[%clk 0:00:10]}  Kd7 {[%clk 0:00:03]} 42. Nxe7+ {[%clk 0:00:10]}  Kxe7 {[%clk 0:00:04]} 43. Rg1 {[%clk 0:00:10]} 1-0


[Site "https://www.chess.com"]

[Event "Titled Tuesday Blitz November 07 Early 2023"]
[White "Predator0608"]
[Black "carokannlover213"]
[WhiteElo "2586"]
[BlackElo "2698"]
[Result "1-0"]
[Round "9"]
[TimeControl "180+1"]
[Date "2023.11.07"]
[WhiteClock "0:00:16"]
[BlackClock "0:00:00"]
[Board "49"]

1. e4 {[%clk 0:02:52]}  c5 {[%clk 0:03:00]} 2. Nf3 {[%clk 0:02:51]}  d6 {[%clk 0:03:00]} 3. d4 {[%clk 0:02:52]}  cxd4 {[%clk 0:03:01]} 4. Nxd4 {[%clk 0:02:53]}  Nf6 {[%clk 0:03:01]} 5. Nc3 {[%clk 0:02:53]}  Nc6 {[%clk 0:03:01]} 6. Be3 {[%clk 0:02:53]}  Ng4 {[%clk 0:03:00]} 7. Nxc6 {[%clk 0:02:46]}  bxc6 {[%clk 0:02:47]} 8. Bc1 {[%clk 0:02:32]}  Qb6 {[%clk 0:02:40]} 9. Qd2 {[%clk 0:02:15]}  g6 {[%clk 0:02:40]} 10. f3 {[%clk 0:02:13]}  Bh6 {[%clk 0:02:35]} 11. f4 {[%clk 0:02:05]}  e5 {[%clk 0:02:31]} 12. g3 {[%clk 0:02:02]}  exf4 {[%clk 0:02:00]} 13. gxf4 {[%clk 0:02:03]}  Qd8 {[%clk 0:02:00]} 14. Qg2 {[%clk 0:01:53]}  Bg7 {[%clk 0:01:49]} 15. Bc4 {[%clk 0:01:32]}  Qb6 {[%clk 0:01:27]} 16. Qg3 {[%clk 0:01:05]}  Bd4 {[%clk 0:01:26]} 17. Rf1 {[%clk 0:00:33]}  h5 {[%clk 0:01:23]} 18. Bb3 {[%clk 0:00:23]}  h4 {[%clk 0:01:22]} 19. Qg2 {[%clk 0:00:22]}  h3 {[%clk 0:01:15]} 20. Qg3 {[%clk 0:00:22]}  Bf6 {[%clk 0:01:15]} 21. Qd3 {[%clk 0:00:14]}  Bh4+ {[%clk 0:01:13]} 22. Ke2 {[%clk 0:00:13]}  Nf2 {[%clk 0:01:09]} 23. Be3 {[%clk 0:00:11]}  Nxd3 {[%clk 0:00:26]} 24. Bxb6 {[%clk 0:00:11]}  Nxb2 {[%clk 0:00:22]} 25. Bd4 {[%clk 0:00:11]}  Ba6+ {[%clk 0:00:21]} 26. Kd2 {[%clk 0:00:11]}  Rh5 {[%clk 0:00:08]} 27. Ne2 {[%clk 0:00:11]}  Nc4+ {[%clk 0:00:08]} 28. Kc3 {[%clk 0:00:11]}  Nb6 {[%clk 0:00:07]} 29. Kd2 {[%clk 0:00:10]}  c5 {[%clk 0:00:08]} 30. Be3 {[%clk 0:00:10]}  Nc4+ {[%clk 0:00:08]} 31. Bxc4 {[%clk 0:00:10]}  Bxc4 {[%clk 0:00:09]} 32. Rfb1 {[%clk 0:00:08]}  Bd8 {[%clk 0:00:09]} 33. Rb7 {[%clk 0:00:07]}  Rh4 {[%clk 0:00:06]} 34. Rab1 {[%clk 0:00:07]}  Rg4 {[%clk 0:00:06]} 35. Ng3 {[%clk 0:00:07]}  a5 {[%clk 0:00:04]} 36. c3 {[%clk 0:00:07]}  Ba6 {[%clk 0:00:04]} 37. R7b2 {[%clk 0:00:06]}  a4 {[%clk 0:00:04]} 38. e5 {[%clk 0:00:07]}  dxe5 {[%clk 0:00:04]} 39. fxe5 {[%clk 0:00:08]}  Bh4 {[%clk 0:00:04]} 40. Rg1 {[%clk 0:00:08]}  Bxg3 {[%clk 0:00:04]} 41. hxg3 {[%clk 0:00:07]}  h2 {[%clk 0:00:03]} 42. Rh1 {[%clk 0:00:07]}  Ke7 {[%clk 0:00:03]} 43. Rxh2 {[%clk 0:00:07]}  Rd8+ {[%clk 0:00:04]} 44. Ke1 {[%clk 0:00:07]}  Rxg3 {[%clk 0:00:04]} 45. Bf4 {[%clk 0:00:08]}  Rg4 {[%clk 0:00:04]} 46. Be3 {[%clk 0:00:08]}  Rd7 {[%clk 0:00:04]} 47. Bxc5+ {[%clk 0:00:08]}  Ke6 {[%clk 0:00:04]} 48. Rb6+ {[%clk 0:00:09]}  Kxe5 {[%clk 0:00:04]} 49. Rxa6 {[%clk 0:00:10]}  Kd5 {[%clk 0:00:04]} 50. Bd4 {[%clk 0:00:10]}  Kc4 {[%clk 0:00:04]} 51. Rxa4+ {[%clk 0:00:11]}  Kd3 {[%clk 0:00:04]} 52. Rd2+ {[%clk 0:00:12]}  Ke4 {[%clk 0:00:04]} 53. Bf2+ {[%clk 0:00:12]}  Kf5 {[%clk 0:00:04]} 54. Rxg4 {[%clk 0:00:13]}  Rxd2 {[%clk 0:00:05]} 55. Rg5+ {[%clk 0:00:12]}  Kxg5 {[%clk 0:00:05]} 56. Kxd2 {[%clk 0:00:12]}  Kf5 {[%clk 0:00:05]} 57. a4 {[%clk 0:00:13]}  Ke5 {[%clk 0:00:06]} 58. a5 {[%clk 0:00:13]}  Kd6 {[%clk 0:00:07]} 59. a6 {[%clk 0:00:14]}  Kc7 {[%clk 0:00:07]} 60. a7 {[%clk 0:00:15]}  Kb7 {[%clk 0:00:08]} 61. c4 {[%clk 0:00:15]}  f5 {[%clk 0:00:08]} 62. Ke2 {[%clk 0:00:15]}  g5 {[%clk 0:00:08]} 63. Kf3 {[%clk 0:00:16]}  Ka8 {[%clk 0:00:08]} 64. Bb6 {[%clk 0:00:15]}  Kb7 {[%clk 0:00:08]} 65. c5 {[%clk 0:00:16]}  g4+ {[%clk 0:00:06]} 66. Kf4 {[%clk 0:00:15]}  g3 {[%clk 0:00:04]} 67. Kxg3 {[%clk 0:00:14]}  Ka8 {[%clk 0:00:05]} 68. Kf4 {[%clk 0:00:14]}  Kb7 {[%clk 0:00:06]} 69. Kxf5 {[%clk 0:00:14]}  Ka8 {[%clk 0:00:07]} 70. Ke5 {[%clk 0:00:15]}  Kb7 {[%clk 0:00:07]} 71. Kd5 {[%clk 0:00:15]}  Ka8 {[%clk 0:00:08]} 72. Ke6 {[%clk 0:00:15]}  Kb7 {[%clk 0:00:08]} 73. Kd6 {[%clk 0:00:16]}  Ka8 {[%clk 0:00:09]} 74. Kd5 {[%clk 0:00:15]}  Kb7 {[%clk 0:00:09]} 75. c6+ {[%clk 0:00:16]}  Ka8 {[%clk 0:00:10]} 76. c7 {[%clk 0:00:16]}  Kb7 {[%clk 0:00:00]} 77. a8=Q+ {[%clk 0:00:16]} 1-0


[Site "https://www.chess.com"]

[Event "Titled Tuesday Blitz November 07 Early 2023"]
[White "Kalogeris, Ioannis"]
[Black "Ovetchkin, Roman"]
[WhiteFideId "4239563"]
[BlackFideId "4119991"]
[WhiteElo "2576"]
[BlackElo "2691"]
[Result "1-0"]
[Round "9"]
[TimeControl "180+1"]
[Date "2023.11.07"]
[WhiteClock "0:00:24"]
[BlackClock "0:00:01"]
[Board "51"]

1. e4 {[%clk 0:03:00]}  c6 {[%clk 0:02:59]} 2. d4 {[%clk 0:03:00]}  d5 {[%clk 0:03:00]} 3. e5 {[%clk 0:03:00]}  Bf5 {[%clk 0:02:59]} 4. Nf3 {[%clk 0:03:00]}  e6 {[%clk 0:02:59]} 5. Nbd2 {[%clk 0:03:00]}  Ne7 {[%clk 0:02:37]} 6. Nb3 {[%clk 0:02:59]}  Nc8 {[%clk 0:02:37]} 7. Be2 {[%clk 0:02:59]}  Be7 {[%clk 0:02:37]} 8. O-O {[%clk 0:02:58]}  O-O {[%clk 0:02:36]} 9. a4 {[%clk 0:02:58]}  a5 {[%clk 0:02:28]} 10. Bd2 {[%clk 0:02:57]}  b6 {[%clk 0:02:16]} 11. Rc1 {[%clk 0:02:53]}  Na6 {[%clk 0:02:07]} 12. c4 {[%clk 0:02:39]}  Nb4 {[%clk 0:02:04]} 13. c5 {[%clk 0:02:31]}  Na2 {[%clk 0:02:02]} 14. Ra1 {[%clk 0:02:28]}  Nb4 {[%clk 0:02:02]} 15. Bxb4 {[%clk 0:02:12]}  axb4 {[%clk 0:02:02]} 16. Qd2 {[%clk 0:02:01]}  bxc5 {[%clk 0:01:57]} 17. dxc5 {[%clk 0:02:02]}  Qc7 {[%clk 0:01:53]} 18. Qxb4 {[%clk 0:01:59]}  Be4 {[%clk 0:01:37]} 19. Nbd4 {[%clk 0:01:44]}  Bxf3 {[%clk 0:00:57]} 20. Bxf3 {[%clk 0:01:44]}  Bg5 {[%clk 0:00:54]} 21. Rfe1 {[%clk 0:01:29]}  Ne7 {[%clk 0:00:54]} 22. g3 {[%clk 0:01:19]}  Rfb8 {[%clk 0:00:46]} 23. Qc3 {[%clk 0:01:09]}  Qa5 {[%clk 0:00:46]} 24. Re2 {[%clk 0:00:58]}  Qxc3 {[%clk 0:00:38]} 25. bxc3 {[%clk 0:00:58]}  Ra5 {[%clk 0:00:38]} 26. h4 {[%clk 0:00:50]}  Bh6 {[%clk 0:00:38]} 27. Raa2 {[%clk 0:00:34]}  Rba8 {[%clk 0:00:17]} 28. Reb2 {[%clk 0:00:30]}  Rxc5 {[%clk 0:00:17]} 29. a5 {[%clk 0:00:28]}  g5 {[%clk 0:00:15]} 30. a6 {[%clk 0:00:27]}  Rxc3 {[%clk 0:00:12]} 31. a7 {[%clk 0:00:25]}  Kg7 {[%clk 0:00:11]} 32. Rb8 {[%clk 0:00:25]}  Rc1+ {[%clk 0:00:06]} 33. Kg2 {[%clk 0:00:24]}  Rxa7 {[%clk 0:00:01]} 34. Rxa7 {[%clk 0:00:24]} 1-0


[Site "https://www.chess.com"]

[Event "Titled Tuesday Blitz November 07 Early 2023"]
[White "Vestby-Ellingsen, Mads"]
[Black "Zavgorodniy, Sergiy"]
[WhiteFideId "1520857"]
[BlackFideId "14110148"]
[WhiteElo "2573"]
[BlackElo "2690"]
[Result "0-1"]
[Round "9"]
[TimeControl "180+1"]
[Date "2023.11.07"]
[WhiteClock "0:00:04"]
[BlackClock "0:00:52"]
[Board "52"]

1. e4 {[%clk 0:02:59]}  c6 {[%clk 0:03:00]} 2. d4 {[%clk 0:02:58]}  d5 {[%clk 0:03:01]} 3. f3 {[%clk 0:02:57]}  dxe4 {[%clk 0:03:01]} 4. fxe4 {[%clk 0:02:58]}  e5 {[%clk 0:03:01]} 5. Nf3 {[%clk 0:02:58]}  Bg4 {[%clk 0:03:01]} 6. Bc4 {[%clk 0:02:57]}  Nd7 {[%clk 0:03:02]} 7. c3 {[%clk 0:02:55]}  b5 {[%clk 0:03:01]} 8. Bb3 {[%clk 0:02:51]}  Ngf6 {[%clk 0:03:01]} 9. Nbd2 {[%clk 0:02:50]}  Bd6 {[%clk 0:03:01]} 10. O-O {[%clk 0:02:50]}  Qc7 {[%clk 0:03:01]} 11. Qe1 {[%clk 0:02:49]}  O-O {[%clk 0:03:01]} 12. Qh4 {[%clk 0:02:48]}  Bh5 {[%clk 0:03:01]} 13. Re1 {[%clk 0:02:44]}  Rae8 {[%clk 0:02:59]} 14. Nf1 {[%clk 0:02:40]}  Bg6 {[%clk 0:02:57]} 15. Bc2 {[%clk 0:02:33]}  exd4 {[%clk 0:02:47]} 16. cxd4 {[%clk 0:02:34]}  c5 {[%clk 0:02:47]} 17. d5 {[%clk 0:02:24]}  Nxd5 {[%clk 0:02:46]} 18. exd5 {[%clk 0:02:05]}  Bxc2 {[%clk 0:02:45]} 19. Bd2 {[%clk 0:02:02]}  Bg6 {[%clk 0:02:37]} 20. Ne3 {[%clk 0:01:58]}  Re4 {[%clk 0:02:30]} 21. Qf2 {[%clk 0:01:56]}  Rfe8 {[%clk 0:02:25]} 22. a4 {[%clk 0:01:50]}  a6 {[%clk 0:02:19]} 23. axb5 {[%clk 0:01:49]}  axb5 {[%clk 0:02:20]} 24. Ra6 {[%clk 0:01:48]}  c4 {[%clk 0:02:17]} 25. Rc6 {[%clk 0:01:47]}  Qb8 {[%clk 0:02:17]} 26. Nf1 {[%clk 0:01:37]}  Ne5 {[%clk 0:02:07]} 27. Nxe5 {[%clk 0:01:30]}  Bxe5 {[%clk 0:02:01]} 28. Rxe4 {[%clk 0:01:23]}  Bxe4 {[%clk 0:02:02]} 29. Bc3 {[%clk 0:01:02]}  Bxc3 {[%clk 0:01:52]} 30. bxc3 {[%clk 0:01:03]}  Bxd5 {[%clk 0:01:51]} 31. Rc5 {[%clk 0:01:02]}  Be6 {[%clk 0:01:45]} 32. Rg5 {[%clk 0:00:52]}  h6 {[%clk 0:01:41]} 33. Rg3 {[%clk 0:00:52]}  Qe5 {[%clk 0:01:35]} 34. Qd2 {[%clk 0:00:45]}  Kh8 {[%clk 0:01:28]} 35. h3 {[%clk 0:00:37]}  Bf5 {[%clk 0:01:18]} 36. Re3 {[%clk 0:00:34]}  Qc5 {[%clk 0:01:15]} 37. Qf2 {[%clk 0:00:26]}  Rxe3 {[%clk 0:01:12]} 38. Nxe3 {[%clk 0:00:18]}  Bg6 {[%clk 0:01:11]} 39. Nd1 {[%clk 0:00:07]}  Qd6 {[%clk 0:01:05]} 40. Qe2 {[%clk 0:00:06]}  b4 {[%clk 0:01:00]} 41. cxb4 {[%clk 0:00:06]}  Qxb4 {[%clk 0:01:01]} 42. Qe3 {[%clk 0:00:04]}  Qb1 {[%clk 0:00:56]} 43. Qd2 {[%clk 0:00:03]}  Bc2 {[%clk 0:00:54]} 44. Qd8+ {[%clk 0:00:03]}  Kh7 {[%clk 0:00:54]} 45. Kh2 {[%clk 0:00:04]}  Qxd1 {[%clk 0:00:54]} 46. Qc8 {[%clk 0:00:05]}  Qd6+ {[%clk 0:00:52]} 47. Kg1 {[%clk 0:00:04]}  Qd4+ {[%clk 0:00:52]} 48. Kh2 {[%clk 0:00:05]}  c3 {[%clk 0:00:52]} 49. Qf5+ {[%clk 0:00:04]}  Bxf5 {[%clk 0:00:52]} 0-1


[Site "https://www.chess.com"]